fUST/lending_fUST_20250306
["ID","MTS","AMOUNT","RATE_DAILY","PERIOD"]
[355472952,1741193447711,-500.0,0.00038904,9]
[355472955,1741193447730,-644.5,0.00038904,9]
[355472957,1741193447742,-500.0,0.00038904,120]
[355472959,1741193447752,-500.0,0.00038904,9]
[355472961,1741193447762,-500.0,0.00038904,9]
[355472963,1741193447774,-500.0,0.00038904,9]
[355472965,1741193447785,-235.74,0.00038904,9]
[355472967,1741193447795,-500.0,0.00038904,9]
[355472969,1741193447805,-500.0,0.00038904,9]
[355472971,1741193447815,-500.0,0.00038904,9]
[355472973,1741193447825,-500.0,0.00038904,9]
[355472975,1741193447835,-500.0,0.00038904,9]
[355472977,1741193447847,-556.68,0.00038904,9]
[355472979,1741193447857,-423.2706387,0.00038904,9]
[355472981,1741193447867,-500.0,0.00038904,9]
[355472983,1741193447877,-500.0,0.00038904,9]
[355472986,1741193447887,-500.0,0.00038904,9]
[355472988,1741193447898,-500.0,0.00038904,9]
[355472990,1741193447907,-500.0,0.00038904,9]
[355472992,1741193447918,-1078.61,0.00038904,9]
[355472994,1741193447928,-500.0,0.00038904,9]
[355472996,1741193447937,-500.0,0.00038904,9]
[355472998,1741193447947,-922.66,0.00038904,9]
[355473000,1741193447958,-939.34,0.00038904,9]
[355473002,1741193447968,-500.0,0.00038904,9]
[355473004,1741193447978,-500.0,0.00038904,9]
[355473006,1741193447988,-951.01,0.00038904,9]
[355473009,1741193448002,-500.0,0.00038904,9]
[355473011,1741193448013,-500.0,0.00038904,9]
[355473013,1741193448024,-500.0,0.00038904,9]
[355473015,1741193448035,-500.0,0.00038904,9]
[355473017,1741193448047,-532.37,0.00038904,9]
[355473019,1741193448058,-500.0,0.00038904,9]
[355473021,1741193448068,-500.0,0.00038904,9]
[355473023,1741193448079,-500.0,0.00038904,9]
[355473025,1741193448090,-500.0,0.00038904,9]
[355473027,1741193448101,-500.0,0.00038904,9]
[355473029,1741193448112,-500.0,0.00038904,9]
[355473031,1741193448123,-500.0,0.00038904,9]
[355473034,1741193448135,-513.1944816,0.00038904,9]
[355473036,1741193448146,-500.0,0.00038904,9]
[355473038,1741193448156,-606.41,0.00038904,9]
[355473040,1741193448167,-500.0,0.00038904,9]
[355473042,1741193448178,-564.69,0.00038904,9]
[355473044,1741193448190,-930.8,0.00038904,9]
[355473046,1741193448201,-518.16,0.00038904,9]
[355473048,1741193448212,-500.0,0.00038904,9]
[355473050,1741193448222,-500.0,0.00038904,9]
[355473052,1741193448232,-500.0,0.00038904,9]
[355473054,1741193448242,-613.3,0.00038904,9]
[355473056,1741193448253,-500.0,0.00038904,9]
[355473058,1741193448264,-500.0,0.00038904,9]
[355473060,1741193448274,-500.0,0.00038904,9]
[355473062,1741193448284,-500.0,0.00038904,9]
[355473064,1741193448294,-500.0,0.00038904,9]
[355473066,1741193448304,-500.0,0.00038904,9]
[355473068,1741193448315,-502.39732747,0.00038904,9]
[355473069,1741193448325,-500.0,0.00038904,9]
[355473070,1741193448335,-513.65555704,0.00038904,9]
[355473071,1741193448346,-1100.83,0.00038904,9]
[355473072,1741193448356,-500.0,0.00038904,9]
[355473073,1741193448366,-500.0,0.00038904,9]
[355473074,1741193448376,-500.0,0.00038904,9]
[355473075,1741193448387,-500.0,0.00038904,9]
[355473076,1741193448397,-500.0,0.00038904,9]
[355473077,1741193448407,-502.47414094,0.00038904,9]
[355473078,1741193448417,-500.0,0.00038904,9]
[355473079,1741193448428,-500.0,0.00038904,9]
[355473080,1741193448439,-500.0,0.00038904,9]
[355473081,1741193448448,-500.0,0.00038904,9]
[355473082,1741193448458,-1892.66,0.00038904,9]
[355473083,1741193448470,-586.01850568,0.00038904,2]
[355473084,1741193448481,-679.55,0.00038904,9]
[355473085,1741193448491,-690.5,0.00038904,9]
[355473086,1741193448501,-4060.71,0.00038904,9]
[355473087,1741193448511,-1152.33,0.00038904,9]
[355473088,1741193448522,-1292.02,0.00038904,9]
[355473089,1741193448532,-500.0,0.00038904,9]
[355473090,1741193448542,-500.0,0.00038904,9]
[355473091,1741193448552,-500.0,0.00038904,9]
[355473092,1741193448563,-950.8,0.00038904,9]
[355473093,1741193448573,-500.0,0.00038904,9]
[355473094,1741193448583,-682.26,0.00038904,9]
[355473095,1741193448594,-500.0,0.00038904,9]
[355473096,1741193448605,-500.0,0.00038904,9]
[355473097,1741193448616,-500.0,0.00038904,9]
[355473098,1741193448626,-725.62,0.00038904,9]
[355473099,1741193448638,-500.0,0.00038904,9]
[355473100,1741193448656,-500.0,0.00038904,9]
[355473101,1741193448667,-564.95,0.00038904,9]
[355473104,1741193448830,-500.0,0.00038904,9]
[355473105,1741193448858,-500.0,0.00038904,9]
[355473106,1741193448869,-13137.52,0.00038904,9]
[355473107,1741193448880,-500.0,0.00038904,9]
[355473108,1741193448890,-500.0,0.00038904,9]
[355473109,1741193448900,-771.54,0.00038904,9]
[355473110,1741193448911,-500.0,0.00038904,9]
[355473111,1741193448920,-712.45,0.00038904,9]
[355473112,1741193448931,-500.0,0.00038904,9]
[355473113,1741193448941,-500.0,0.00038904,9]
[355473114,1741193448951,-500.0,0.00038904,9]
[355473115,1741193448962,-500.0,0.00038904,9]
[355473116,1741193448972,-500.0,0.00038904,9]
[355473117,1741193448982,-6700.09,0.00038904,9]
[355473118,1741193448993,-500.0,0.00038904,9]
[355473119,1741193449006,-1345.69,0.00038904,9]
[355473120,1741193449016,-1675.15,0.00038904,9]
[355473121,1741193449027,-5352.08,0.00038904,9]
[355473122,1741193449039,-677.55,0.00038904,9]
[355473123,1741193449050,-570.35,0.00038904,9]
[355473124,1741193449061,-500.0,0.00038904,9]
[355473125,1741193449071,-500.0,0.00038904,9]
[355473126,1741193449083,-500.0,0.00038904,9]
[355473127,1741193449093,-500.0,0.00038904,9]
[355473128,1741193449104,-500.0,0.00038904,9]
[355473129,1741193449115,-1313.7,0.00038904,9]
[355473130,1741193449125,-500.0,0.00038904,9]
[355473131,1741193449135,-500.0,0.00038904,9]
[355473132,1741193449145,-500.0,0.00038904,9]
[355473133,1741193449155,-500.0,0.00038904,9]
[355473134,1741193449164,-500.0,0.00038904,9]
[355473135,1741193449174,-1001.1,0.00038904,9]
[355473136,1741193449188,-500.0,0.00038904,9]
[355473137,1741193449198,-2658.19,0.00038904,9]
[355473138,1741193449208,-500.0,0.00038904,9]
[355473139,1741193449217,-500.0,0.00038904,9]
[355473140,1741193449228,-1081.26,0.00038904,9]
[355473141,1741193449237,-500.0,0.00038904,9]
[355473142,1741193449247,-1246.85,0.00038904,9]
[355473143,1741193449257,-500.0,0.00038904,9]
[355473144,1741193449267,-500.0,0.00038904,9]
[355473145,1741193449277,-500.0,0.00038904,9]
[355473146,1741193449288,-500.0,0.00038904,9]
[355473147,1741193449298,-500.0,0.00038904,9]
[355473148,1741193449308,-500.0,0.00038904,9]
[355473149,1741193449318,-500.0,0.00038904,9]
[355473150,1741193449328,-500.0,0.00038904,9]
[355473151,1741193449337,-500.0,0.00038904,9]
[355473152,1741193449347,-1095.17,0.00038904,9]
[355473153,1741193449357,-526.11,0.00038904,9]
[355473154,1741193449367,-500.0,0.00038904,9]
[355473155,1741193449376,-500.0,0.00038904,9]
[355473156,1741193449386,-500.0,0.00038904,9]
[355473157,1741193449395,-500.0,0.00038904,9]
[355473158,1741193449405,-500.0,0.00038904,9]
[355473159,1741193449415,-655.54,0.00038904,9]
[355473160,1741193449424,-500.0,0.00038904,9]
[355473161,1741193449434,-500.0,0.00038904,9]
[355473162,1741193449443,-1731.22,0.00038904,9]
[355473163,1741193449452,-500.0,0.00038904,9]
[355473164,1741193449462,-500.0,0.00038904,9]
[355473165,1741193449472,-500.0,0.00038904,9]
[355473166,1741193449481,-500.0,0.00038904,9]
[355473167,1741193449490,-677.85,0.00038904,9]
[355473168,1741193449500,-500.0,0.00038904,9]
[355473169,1741193449509,-500.0,0.00038904,9]
[355473170,1741193449518,-500.0,0.00038904,9]
[355473171,1741193449527,-500.0,0.00038904,9]
[355473172,1741193449537,-151.0,0.00038904,14]
[355473173,1741193449546,-787.85,0.00038904,9]
[355473174,1741193449555,-500.0,0.00038904,9]
[355473175,1741193449565,-5043.64,0.00038904,9]
[355473176,1741193449574,-500.0,0.00038904,9]
[355473177,1741193449583,-1556.37,0.00038904,9]
[355473178,1741193449594,-496.08495178,0.00038904,9]
[355473179,1741193449603,-500.0,0.00038904,9]
[355473180,1741193449612,-845.58,0.00038904,9]
[355473181,1741193449621,-500.0,0.00038904,9]
[355473182,1741193449631,-500.0,0.00038904,9]
[355473183,1741193449640,-500.0,0.00038904,9]
[355473184,1741193449650,-500.0,0.00038904,9]
[355473185,1741193449660,-188.07015413,0.00038904,9]
[355473186,1741193449669,-4634.0,0.00038904,9]
[355473187,1741193449679,-5156.56,0.00038904,9]
[355473188,1741193449688,-500.0,0.00038904,9]
[355473189,1741193449699,-500.0,0.00038904,9]
[355473190,1741193449708,-500.0,0.00038904,9]
[355473191,1741193449717,-500.0,0.00038904,9]
[355473192,1741193449727,-500.0,0.00038904,9]
[355473193,1741193449736,-580.59,0.00038904,9]
[355473194,1741193449746,-565.23,0.00038904,9]
[355473195,1741193449757,-500.0,0.00038904,9]
[355473196,1741193449766,-1555.81,0.00038904,9]
[355473197,1741193449777,-500.0,0.00038904,9]
[355473198,1741193449786,-500.0,0.00038904,9]
[355473200,1741193449796,-500.0,0.00038904,9]
[355473202,1741193449805,-3212.79,0.00038904,9]
[355473204,1741193449815,-500.0,0.00038904,9]
[355473206,1741193449825,-500.0,0.00038904,9]
[355473208,1741193449834,-692.02,0.00038904,9]
[355473210,1741193449847,-500.0,0.00038904,9]
[355473211,1741193449860,-620.9,0.00038904,9]
[355473212,1741193449870,-96087.64,0.00038904,7]
[355473213,1741193449880,-500.0,0.00038904,9]
[355473214,1741193449890,-500.0,0.00038904,9]
[355473215,1741193449901,-5902.74,0.00038904,9]
[355473216,1741193449911,-8250.54,0.00038904,9]
[355473217,1741193449922,-500.0,0.00038904,9]
[355473218,1741193449932,-500.0,0.00038904,9]
[355473219,1741193449942,-500.0,0.00038904,9]
[355473220,1741193449953,-500.0,0.00038904,9]
[355473221,1741193449963,-527.73652858,0.00038904,9]
[355473222,1741193449973,-500.0,0.00038904,9]
[355473223,1741193449983,-500.0,0.00038904,9]
[355473224,1741193449993,-3900.72,0.00038904,9]
[355473225,1741193450009,-2116.15,0.00038904,9]
[355473226,1741193450019,-500.0,0.00038904,9]
[355473227,1741193450029,-500.0,0.00038904,9]
[355473228,1741193450039,-500.0,0.00038904,9]
[355473229,1741193450049,-500.0,0.00038904,9]
[355473230,1741193450058,-1203.66,0.00038904,9]
[355473231,1741193450068,-583.15,0.00038904,9]
[355473232,1741193450078,-500.0,0.00038904,9]
[355473233,1741193450088,-779.82,0.00038904,9]
[355473234,1741193450100,-500.0,0.00038904,9]
[355473235,1741193450110,-1497.03,0.00038904,9]
[355473236,1741193450120,-500.0,0.00038904,9]
[355473237,1741193450131,-500.0,0.00038904,9]
[355473238,1741193450141,-1072.27,0.00038904,9]
[355473239,1741193450150,-812.32,0.00039,30]
[355473240,1741193450160,-840.36215176,0.00039,120]
[355473241,1741193450170,-151.0,0.00039178,14]
[355473242,1741193450179,-198.193212,0.00039178,14]
[355473243,1741193450189,-500.0,0.00039178,9]
[355473244,1741193450198,-500.0,0.00039178,9]
[355473245,1741193450207,-393.70008475,0.00039178,9]
[355473246,1741193450217,-500.0,0.00039178,9]
[355473247,1741193450227,-500.0,0.00039178,9]
[355473248,1741193450237,-500.0,0.00039178,9]
[355473249,1741193450246,-500.0,0.00039178,9]
[355473250,1741193450257,-458.3141968,0.00039178,9]
[355473251,1741193450267,-500.0,0.00039178,9]
[355473252,1741193450277,-500.0,0.00039178,9]
[355473253,1741193450288,-525.97,0.00039178,9]
[355473254,1741193450298,-500.0,0.00039178,9]
[355473255,1741193450308,-500.0,0.00039178,9]
[355473256,1741193450318,-500.0,0.00039178,9]
[355473257,1741193450328,-500.0,0.00039178,9]
[355473258,1741193450338,-500.0,0.00039178,9]
[355473259,1741193450350,-500.0,0.00039178,9]
[355473260,1741193450359,-500.0,0.00039178,9]
[355473261,1741193450369,-500.0,0.00039178,9]
[355473262,1741193450378,-375.00008104,0.00039178,9]
[355473263,1741193450387,-500.0,0.00039178,9]
[355473264,1741193450397,-500.0,0.00039178,9]
[355473265,1741193450406,-500.0,0.00039178,9]
[355473266,1741193450416,-500.0,0.00039178,9]
[355473267,1741193450426,-500.0,0.00039178,9]
[355473268,1741193450437,-500.0,0.00039178,9]
[355473269,1741193450446,-798.37,0.00039178,9]
[355473270,1741193450457,-500.0,0.00039178,9]
[355473271,1741193450467,-680.63,0.00039178,9]
[355473272,1741193450477,-500.0,0.00039178,9]
[355473273,1741193450486,-595.64,0.00039178,9]
[355473274,1741193450496,-500.0,0.00039178,9]
[355473275,1741193450505,-507.82535243,0.00039178,9]
[355473276,1741193450514,-500.0,0.00039178,9]
[355473277,1741193450524,-500.0,0.00039178,9]
[355473278,1741193450534,-500.0,0.00039178,9]
[355473279,1741193450543,-500.0,0.00039178,9]
[355473280,1741193450552,-500.0,0.00039178,9]
[355473281,1741193450562,-243.73808741,0.00039178,9]
[355473282,1741193450572,-515.50935586,0.00039178,9]
[355473283,1741193450581,-374.94,0.00039178,9]
[355473284,1741193450591,-762.21,0.00039178,9]
[355473285,1741193450603,-290.5669836,0.00039178,9]
[355473286,1741193450613,-500.0,0.00039178,9]
[355473287,1741193450623,-500.0,0.00039178,9]
[355473288,1741193450634,-619.95,0.00039178,9]
[355473289,1741193450643,-500.0,0.00039178,9]
[355473290,1741193450654,-500.0,0.00039178,9]
[355473291,1741193450664,-500.0,0.00039178,9]
[355473292,1741193450674,-500.0,0.00039178,9]
[355473293,1741193450683,-500.0,0.00039178,9]
[355473294,1741193450693,-500.0,0.00039178,9]
[355473295,1741193450703,-500.0,0.00039178,9]
[355473296,1741193450713,-500.0,0.00039178,9]
[355473297,1741193450723,-500.0,0.00039178,9]
[355473298,1741193450732,-500.0,0.00039178,9]
[355473299,1741193450742,-644.5,0.00039178,9]
[355473300,1741193450751,-500.0,0.00039178,9]
[355473301,1741193450761,-500.0,0.00039178,9]
[355473302,1741193450771,-274.44098617,0.00039178,9]
[355473303,1741193450780,-500.0,0.00039178,9]
[355473304,1741193450790,-500.0,0.00039178,9]
[355473305,1741193450799,-500.0,0.00039178,9]
[355473306,1741193450808,-500.0,0.00039178,9]
[355473307,1741193450818,-556.68,0.00039178,9]
[355473308,1741193450828,-500.0,0.00039178,9]
[355473309,1741193450838,-500.0,0.00039178,9]
[355473310,1741193450851,-500.0,0.00039178,9]
[355473311,1741193450861,-500.0,0.00039178,9]
[355473312,1741193450873,-500.0,0.00039178,9]
[355473313,1741193450883,-1078.61,0.00039178,9]
[355473314,1741193450894,-500.0,0.00039178,9]
[355473315,1741193450904,-185.42520493,0.00039178,9]
[355473316,1741193450915,-922.66,0.00039178,9]
[355473317,1741193450924,-939.34,0.00039178,9]
[355473318,1741193450934,-500.0,0.00039178,9]
[355473319,1741193450944,-500.0,0.00039178,9]
[355473320,1741193450954,-951.01,0.00039178,9]
[355473321,1741193450964,-500.0,0.00039178,9]
[355473322,1741193450974,-500.0,0.00039178,9]
[355473323,1741193450984,-314.60856421,0.00039178,9]
[355473324,1741193450994,-500.0,0.00039178,9]
[355473325,1741193451004,-532.37,0.00039178,9]
[355473326,1741193451016,-500.0,0.00039178,9]
[355473327,1741193451026,-500.0,0.00039178,9]
[355473328,1741193451035,-154.94053786,0.00039178,9]
[355473329,1741193451053,-500.0,0.00039178,9]
[355473330,1741193451063,-500.0,0.00039178,9]
[355473331,1741193451072,-500.0,0.00039178,9]
[355473333,1741193451082,-215.07005909,0.00039178,9]
[355473335,1741193451092,-500.0,0.00039178,9]
[355473336,1741193451104,-606.41,0.00039178,9]
[355473338,1741193451113,-500.0,0.00039178,9]
[355473340,1741193451123,-564.69,0.00039178,9]
[355473342,1741193451132,-930.8,0.00039178,9]
[355473344,1741193451142,-518.16,0.00039178,9]
[355473346,1741193451151,-500.0,0.00039178,9]
[355473348,1741193451161,-510.5346889,0.00039178,9]
[355473350,1741193451170,-500.0,0.00039178,9]
[355473352,1741193451180,-613.3,0.00039178,9]
[355473354,1741193451189,-500.0,0.00039178,9]
[355473356,1741193451198,-500.0,0.00039178,9]
[355473358,1741193451207,-500.0,0.00039178,9]
[355473360,1741193451216,-500.0,0.00039178,9]
[355473362,1741193451225,-500.0,0.00039178,9]
[355473364,1741193451234,-500.0,0.00039178,9]
[355473366,1741193451243,-500.0,0.00039178,9]
[355473368,1741193451252,-1100.83,0.00039178,9]
[355473370,1741193451261,-500.0,0.00039178,9]
[355473372,1741193451270,-500.0,0.00039178,9]
[355473374,1741193451280,-500.0,0.00039178,9]
[355473376,1741193451289,-500.0,0.00039178,9]
[355473378,1741193451297,-500.0,0.00039178,9]
[355473380,1741193451306,-643.78308562,0.00039178,9]
[355473382,1741193451316,-500.0,0.00039178,9]
[355473384,1741193451326,-1892.66,0.00039178,9]
[355473386,1741193451335,-679.55,0.00039178,9]
[355473388,1741193451347,-690.5,0.00039178,9]
[355473390,1741193451356,-4060.71,0.00039178,9]
[355473392,1741193451366,-1152.33,0.00039178,9]
[355473394,1741193451376,-1292.02,0.00039178,9]
[355473396,1741193451385,-500.0,0.00039178,9]
[355473398,1741193451395,-500.0,0.00039178,9]
[355473400,1741193451404,-950.8,0.00039178,9]
[355473402,1741193451413,-500.0,0.00039178,9]
[355473404,1741193451422,-500.0,0.00039178,9]
[355473406,1741193451432,-682.26,0.00039178,9]
[355473408,1741193451441,-500.0,0.00039178,9]
[355473410,1741193451450,-500.0,0.00039178,9]
[355473412,1741193451460,-500.0,0.00039178,9]
[355473414,1741193451469,-725.62,0.00039178,9]
[355473416,1741193451478,-500.0,0.00039178,9]
[355473418,1741193451488,-500.0,0.00039178,9]
[355473420,1741193451497,-515.34849456,0.00039178,9]
[355473422,1741193451506,-564.95,0.00039178,9]
[355473424,1741193451515,-500.0,0.00039178,9]
[355473426,1741193451525,-13137.52,0.00039178,9]
[355473428,1741193451535,-437.0031888,0.00039178,9]
[355473453,1741193451920,-500.0,0.00038356,9]
[355473454,1741193451932,-500.0,0.0003863,9]
[355473455,1741193451942,-500.0,0.00038904,9]
[355473456,1741193451952,-62.9968112,0.00039178,9]
[355473457,1741193451961,-771.54,0.00039178,9]
[355473458,1741193451970,-500.0,0.00039178,9]
[355473459,1741193451979,-712.45,0.00039178,9]
[355473460,1741193451989,-500.0,0.00039178,9]
[355473461,1741193452151,-500.0,0.00039178,9]
[355473462,1741193452161,-500.0,0.00039178,9]
[355473463,1741193452171,-500.0,0.00039178,9]
[355473464,1741193452181,-500.0,0.00039178,9]
[355473465,1741193452191,-6700.09,0.00039178,9]
[355473466,1741193452200,-500.0,0.00039178,9]
[355473467,1741193452209,-1345.69,0.00039178,9]
[355473468,1741193452220,-1675.15,0.00039178,9]
[355473469,1741193452230,-5352.08,0.00039178,9]
[355473470,1741193452240,-677.55,0.00039178,9]
[355473471,1741193452250,-570.35,0.00039178,9]
[355473472,1741193452259,-500.0,0.00039178,9]
[355473473,1741193452270,-500.0,0.00039178,9]
[355473474,1741193452279,-649.96387435,0.00039178,9]
[355473475,1741193452289,-500.0,0.00039178,9]
[355473476,1741193452299,-500.0,0.00039178,9]
[355473477,1741193452309,-1313.7,0.00039178,9]
[355473478,1741193452319,-500.0,0.00039178,9]
[355473479,1741193452329,-500.0,0.00039178,9]
[355473480,1741193452340,-500.0,0.00039178,9]
[355473481,1741193452355,-514.07925367,0.00039178,9]
[355473482,1741193452365,-500.0,0.00039178,9]
[355473483,1741193452375,-1001.1,0.00039178,9]
[355473484,1741193452385,-500.0,0.00039178,9]
[355473485,1741193452396,-2658.19,0.00039178,9]
[355473486,1741193452405,-500.0,0.00039178,9]
[355473487,1741193452415,-500.0,0.00039178,9]
[355473488,1741193452424,-1081.26,0.00039178,9]
[355473489,1741193452434,-345.81,0.00039178,9]
[355473490,1741193452445,-1246.85,0.00039178,9]
[355473491,1741193452454,-500.0,0.00039178,9]
[355473492,1741193452464,-500.0,0.00039178,9]
[355473493,1741193452474,-500.0,0.00039178,9]
[355473494,1741193452483,-500.0,0.00039178,9]
[355473495,1741193452493,-500.0,0.00039178,9]
[355473496,1741193452502,-500.0,0.00039178,9]
[355473497,1741193452511,-500.0,0.00039178,9]
[355473498,1741193452520,-500.0,0.00039178,9]
[355473499,1741193452529,-500.0,0.00039178,9]
[355473500,1741193452539,-1095.17,0.00039178,9]
[355473501,1741193452548,-526.11,0.00039178,9]
[355473502,1741193452557,-500.0,0.00039178,9]
[355473503,1741193452566,-500.0,0.00039178,9]
[355473504,1741193452576,-500.0,0.00039178,9]
[355473505,1741193452585,-500.0,0.00039178,9]
[355473506,1741193452594,-655.54,0.00039178,9]
[355473507,1741193452604,-500.0,0.00039178,9]
[355473508,1741193452613,-612.21252568,0.00039178,9]
[355473509,1741193452623,-1731.22,0.00039178,9]
[355473510,1741193452632,-500.0,0.00039178,9]
[355473511,1741193452641,-500.0,0.00039178,9]
[355473512,1741193452651,-500.0,0.00039178,9]
[355473513,1741193452660,-500.0,0.00039178,9]
[355473514,1741193452670,-677.85,0.00039178,9]
[355473515,1741193452679,-549.63010239,0.00039178,9]
[355473516,1741193452689,-500.0,0.00039178,9]
[355473517,1741193452698,-500.0,0.00039178,9]
[355473518,1741193452707,-500.0,0.00039178,9]
[355473519,1741193452717,-151.0,0.00039178,14]
[355473520,1741193452727,-787.85,0.00039178,9]
[355473521,1741193452736,-500.0,0.00039178,9]
[355473522,1741193452746,-151.0,0.00039178,14]
[355473523,1741193452756,-5043.64,0.00039178,9]
[355473524,1741193452766,-500.0,0.00039178,9]
[355473525,1741193452776,-1556.37,0.00039178,9]
[355473526,1741193452786,-500.0,0.00039178,9]
[355473527,1741193452795,-845.58,0.00039178,9]
[355473528,1741193452805,-500.0,0.00039178,9]
[355473529,1741193452814,-500.0,0.00039178,9]
[355473530,1741193452823,-500.0,0.00039178,9]
[355473531,1741193452833,-500.0,0.00039178,9]
[355473532,1741193452843,-4634.0,0.00039178,9]
[355473533,1741193452854,-5156.56,0.00039178,9]
[355473534,1741193452863,-500.0,0.00039178,9]
[355473535,1741193452873,-500.0,0.00039178,9]
[355473536,1741193452883,-211.12851804,0.00039178,9]
[355473537,1741193452892,-500.0,0.00039178,9]
[355473538,1741193452901,-500.0,0.00039178,9]
[355473539,1741193452911,-565.23,0.00039178,9]
[355473540,1741193452920,-580.59,0.00039178,9]
[355473541,1741193452930,-500.0,0.00039178,9]
[355473542,1741193452939,-1555.81,0.00039178,9]
[355473543,1741193452950,-500.0,0.00039178,9]
[355473544,1741193452960,-500.0,0.00039178,9]
[355473545,1741193452970,-500.0,0.00039178,9]
[355473546,1741193452979,-500.0,0.00039178,9]
[355473547,1741193452989,-3212.79,0.00039178,9]
[355473548,1741193452998,-263.45004463,0.00039178,9]
[355473549,1741193453007,-692.02,0.00039178,9]
[355473550,1741193453019,-500.0,0.00039178,9]
[355473551,1741193453029,-620.9,0.00039178,9]
[355473552,1741193453039,-59530.30634252,0.00039178,7]
[355473565,1741194560144,-154.74409449,0.00023,10]
[355473605,1741194632155,-150.0,0.000209,2]
[355473606,1741194632165,-142.04894544,0.00023,10]
[355473607,1741194632176,-169.42418286,0.00023,10]
[355473608,1741194632186,-500.0,0.00023,10]
[355473609,1741194632196,-500.0,0.00023,5]
[355473610,1741194632206,-500.0,0.00023,5]
[355473611,1741194632215,-150.0,0.000259,2]
[355473612,1741194632225,-500.0,0.0003,7]
[355473613,1741194632236,-500.0,0.0003,7]
[355473614,1741194632247,-500.0,0.0003,7]
[355473615,1741194632256,-500.0,0.0003,7]
[355473616,1741194632266,-500.0,0.0003,7]
[355473617,1741194632275,-502.25,0.00033,12]
[355473618,1741194632285,-7795.2996483,0.00035102,2]
[355473619,1741194632295,-191.259526,0.00035199,2]
[355473620,1741194632305,-162.0,0.000352,120]
[355473621,1741194632314,-255.572598,0.00035223,120]
[355473622,1741194632323,-500.0,0.0003589,2]
[355473623,1741194632333,-459.63894143,0.000359,7]
[355473624,1741194632346,-184.0,0.00036,2]
[355473625,1741194632355,-150.0,0.00037504,2]
[355473626,1741194632365,-416.66666667,0.00038102,2]
[355473627,1741194632374,-817.49171399,0.0003812,5]
[355473628,1741194632384,-414.4005436,0.00038125,4]
[355473629,1741194632394,-1676.43805346,0.000382,3]
[355473630,1741194632404,-3000.0,0.00038256,2]
[355473631,1741194632415,-172.58351857,0.00038256,2]
[355473632,1741194632427,-589.80261935,0.00038256,2]
[355473633,1741194632436,-500.0,0.00038355,2]
[355473634,1741194632446,-500.0,0.00038355,2]
[355473635,1741194632456,-500.0,0.00038355,2]
[355473636,1741194632466,-173.92769169,0.00038355,2]
[355473637,1741194632477,-500.0,0.00038356,9]
[355473638,1741194632487,-500.79356831,0.00038356,9]
[355473639,1741194632497,-499.0,0.00038356,9]
[355473640,1741194632507,-503.75881814,0.00038356,120]
[355473641,1741194632518,-500.0,0.00038356,9]
[355473642,1741194632527,-500.0,0.00038356,9]